bitfinex/quotes_SOLUSD_20250414
["timestamp","ask_amount","ask_price","bid_price","bid_amount"]
[1744615075597,8.96,131.6,131.56,28.06702]
[1744615075827,117.04572,131.61,131.56,28.06702]
[1744615076116,117.04572,131.61,131.56,34.14762]
[1744615076117,28.06702,131.61,131.56,34.14762]
[1744615076331,34.14522,131.62,131.57,28.06702]
[1744615076508,34.14522,131.62,131.56,6.0806]
[1744615076509,28.06702,131.61,131.56,28.06702]
[1744615076903,28.06702,131.59,131.55,0.063]
[1744615077125,28.06702,131.58,131.55,0.063]
[1744615077624,28.06702,131.59,131.55,0.063]
[1744615077816,28.06702,131.6,131.55,28.13002]
[1744615078005,28.06702,131.61,131.56,28.06702]
[1744615078325,28.06702,131.6,131.55,28.13002]
[1744615078912,34.14552,131.61,131.56,28.06702]
[1744615079115,28.06702,131.6,131.55,28.13002]
[1744615079322,6.0782,131.62,131.57,28.06702]
[1744615079505,6.0782,131.62,131.58,28.06702]
[1744615080028,28.06702,131.64,131.59,28.06702]
[1744615080539,34.14382,131.65,131.6,28.06702]
[1744615080724,34.14342,131.66,131.61,28.06702]
[1744615080922,8.96,131.68,131.63,28.06702]
[1744615080923,37.02702,131.68,131.63,28.06702]
[1744615081329,43.10262,131.68,131.63,28.06702]
[1744615082622,28.06702,131.66,131.61,28.06702]
[1744615082801,28.06702,131.65,131.6,28.06702]
[1744615083006,28.06702,131.66,131.61,28.06702]
[1744615083234,34.14262,131.68,131.63,28.06702]
[1744615083555,6.0756,131.68,131.64,28.06702]
[1744615083719,34.14202,131.69,131.64,34.14412]
[1744615083923,10.68546157,131.72,131.65,28.06702]
[1744615083924,34.14142,131.7,131.65,28.06702]
[1744615084231,34.14112,131.71,131.66,28.06702]
[1744615084841,28.06702,131.74,131.69,28.06702]
[1744615085032,15.0617,131.76,131.71,28.06702]
[1744615085239,33.98796029,131.76,131.71,18.92626029]
[1744615085438,6.1017,131.76,131.72,18.92626029]
[1744615085825,25.02796029,131.76,131.71,18.92626029]
[1744615086128,6.1017,131.76,131.72,18.92626029]
[1744615086337,6.1017,131.76,131.7,107.60046029]
[1744615086338,0.03,131.74,131.7,107.60046029]
[1744615086539,0.03,131.74,131.73,18.92626029]
[1744615087538,0.03,131.76,131.74,18.933972]
[1744615087748,0.03,131.76,131.75,37.85252058]
[1744615088315,0.03,131.76,131.75,18.92626029]
[1744615088930,0.03,131.76,131.75,24.99836029]
[1744615089127,0.03,131.76,131.75,34.00042642]
[1744615090844,0.03,131.76,131.74,27.92832642]
[1744615091337,0.03,131.76,131.75,27.92832642]
[1744615091943,0.03,131.76,131.75,81.00488641]
[1744615092252,0.03,131.76,131.75,163.60488641]
[1744615092421,0.03,131.76,131.75,163.46272484]
[1744615092947,0.03,131.76,131.75,116.60042642]
[1744615093238,0.03,131.76,131.75,144.67091441]
[1744615093432,0.03,131.76,131.75,144.81307598]
[1744615093631,0.03,131.76,131.75,163.46272484]
[1744615094137,0.0001,131.76,131.75,163.60488641]
[1744615094440,0.0001,131.76,131.75,163.46272484]
[1744615094637,0.0001,131.76,131.75,163.60488641]
[1744615096442,2.7206231,131.82,131.76,122.92673357]
[1744615096643,2.7206231,131.82,131.81,27.92832642]
[1744615097038,2.7206231,131.82,131.81,163.92808641]
[1744615097335,0.03,131.85,131.83,0.14216157]
[1744615097545,0.03,131.85,131.84,28.07048799]
[1744615098250,0.03,131.85,131.84,47.00445999]
[1744615098570,0.03,131.85,131.84,53.07235999]
[1744615098719,0.03,131.85,131.84,52.93019842]
[1744615099129,0.03,131.85,131.84,53.07235999]
[1744615099640,0.03,131.89,131.88,18.79181043]
[1744615099837,0.03,131.89,131.88,157.53268641]
[1744615100324,0.0001,131.89,131.88,74.93278641]
[1744615100626,0.0001,131.89,131.88,80.99888641]
[1744615100832,0.0001,131.89,131.88,135.52839842]
[1744615101749,0.0001,131.89,131.88,163.59888641]
[1744615102627,27.92832642,132.0,131.93,0.28432314]
[1744615102945,27.92832642,132.0,131.95,27.92832642]
[1744615103131,33.98902642,132.0,131.95,27.92832642]
[1744615103443,40.21962642,132.01,131.96,27.92832642]
[1744615103644,31.2888,132.07,132.0,27.92832642]
[1744615103645,15.143,132.06,132.0,27.92832642]
[1744615103834,26.0,132.02,131.99,27.92832642]
[1744615104234,33.98662642,132.05,131.99,27.92832642]
[1744615104623,6.0575,132.07,132.02,27.92832642]
[1744615104820,33.98532642,132.08,132.03,27.92832642]
[1744615105242,27.92832642,132.06,132.01,27.92832642]
[1744615105431,8.7472231,132.09,132.03,27.92832642]
[1744615105636,27.92832642,132.08,132.03,27.92832642]
[1744615105831,36.67554952,132.09,132.04,27.92832642]
[1744615106151,27.92832642,132.07,132.02,27.92832642]
[1744615106540,2.6906231,132.09,132.04,27.92832642]
[1744615106745,2.6906231,132.09,132.06,27.92832642]
[1744615106941,2.6906231,132.09,132.08,27.92832642]
[1744615107248,2.6906231,132.09,132.03,6.34352314]
[1744615107446,36.67544952,132.09,132.02,88.6596]
[1744615107629,30.61894952,132.09,132.04,27.92832642]
[1744615107829,2.6906231,132.09,132.06,27.92832642]
[1744615108032,2.6906231,132.09,132.07,27.92832642]
[1744615108258,2.6906231,132.09,132.08,27.92832642]
[1744615108556,2.6906231,132.09,132.08,135.66135999]
[1744615109468,2.6906231,132.09,132.08,59.20559842]
[1744615109761,2.6906231,132.09,132.08,59.34775999]
[1744615110130,0.03,132.13,132.12,18.79181043]
[1744615110333,0.03,132.13,132.12,74.93278641]
[1744615110530,0.03,132.13,132.12,163.58788641]
[1744615110531,0.0001,132.13,132.12,163.58788641]
[1744615110775,0.03,132.21,132.17,0.28432314]
[1744615111068,0.03,132.21,132.2,27.92832642]
[1744615111848,0.03,132.21,132.2,46.86229842]
[1744615112156,0.03,132.21,132.2,27.92832642]
[1744615112354,0.03,132.21,132.2,47.00445999]
[1744615112551,0.03,132.21,132.2,53.05585999]
[1744615112737,6.0462,132.32,132.24,18.64964886]
[1744615112940,27.92832642,132.29,132.24,27.92832642]
[1744615113139,6.0462,132.32,132.24,27.92832642]
[1744615113140,18.79181043,132.31,132.24,27.92832642]
[1744615113341,27.92832642,132.29,132.24,27.92832642]
[1744615113544,26.0,132.25,132.14,21.5631]
[1744615113749,26.0,132.25,132.18,27.92832642]
[1744615113955,53.92832642,132.25,132.2,27.92832642]
[1744615114149,26.0,132.25,132.21,27.92832642]
[1744615114348,27.92832642,132.3,132.24,27.92832642]
[1744615114559,2.6906231,132.35,132.29,27.92832642]
[1744615114774,2.6906231,132.35,132.32,27.92832642]
[1744615115068,28.6906231,132.35,132.26,0.42648471]
[1744615115253,28.6906231,132.35,132.29,27.92832642]
[1744615115455,62.66364952,132.35,132.29,27.92832642]
[1744615115764,36.66364952,132.35,132.29,27.92832642]
[1744615116083,2.6906231,132.35,132.31,27.92832642]
[1744615116265,8.7352231,132.35,132.32,27.92832642]
[1744615116469,36.66354952,132.35,132.3,27.92832642]
[1744615116770,2.6906231,132.35,132.32,27.92832642]
[1744615117141,27.92832642,132.33,132.28,27.92832642]
[1744615117551,8.7353231,132.35,132.3,27.92832642]
[1744615117758,6.0459,132.32,132.26,6.0486]
[1744615118069,6.0459,132.32,132.28,27.92832642]
[1744615118451,6.045,132.34,132.29,27.92832642]
[1744615118773,33.97332642,132.34,132.29,27.92832642]
[1744615118972,27.92832642,132.3,132.2,6.5314]
[1744615119177,27.92832642,132.3,132.18,110.52832642]
[1744615119178,27.92832642,132.23,132.18,27.92832642]
[1744615119476,27.92832642,132.24,132.19,27.92832642]
[1744615119678,27.92832642,132.23,132.17,27.92832642]
[1744615119843,33.97862642,132.23,132.18,27.92832642]
[1744615120041,27.92832642,132.2,132.12,6.0551]
[1744615120241,27.92832642,132.22,132.16,27.92832642]
[1744615120552,27.92832642,132.22,132.12,27.92832642]
[1744615120553,27.92832642,132.17,132.12,27.92832642]
[1744615120876,27.92832642,132.14,132.06,119.14832642]
[1744615121112,27.92832642,132.16,132.1,27.92832642]
[1744615121375,27.92832642,132.16,132.11,27.92832642]
[1744615121677,27.92832642,132.16,132.07,6.0572]
[1744615121845,33.98152642,132.16,132.11,27.92832642]
[1744615122050,27.92832642,132.15,132.07,6.057]
[1744615122242,27.92832642,132.12,132.06,6.0577]
[1744615122449,27.92832642,132.14,132.09,27.92832642]
[1744615122650,27.92832642,132.15,132.1,27.92832642]
[1744615122946,27.92832642,132.11,132.06,27.92832642]
[1744615123151,18.79181043,132.14,132.05,27.92832642]
[1744615123152,27.92832642,132.1,132.05,27.92832642]
[1744615123551,27.92832642,132.11,132.06,27.92832642]
[1744615123871,33.98522642,132.08,132.03,27.92832642]
[1744615124065,33.98522642,132.08,132.02,27.99132642]
[1744615124066,27.92832642,132.07,132.02,27.99132642]
[1744615124266,24.84741043,132.11,132.05,27.92832642]
[1744615124474,27.92832642,132.07,132.02,0.063]
[1744615124676,27.92832642,132.07,132.02,27.99132642]
[1744615124982,18.79181043,132.1,132.03,27.92832642]
[1744615125279,27.92832642,132.08,132.03,27.92832642]
[1744615126798,33.98532642,132.08,132.03,27.92832642]
[1744615127098,27.92832642,132.05,132.02,0.063]
[1744615127376,27.92832642,132.06,132.02,0.063]
[1744615127574,27.92832642,132.08,132.02,27.99132642]
[1744615127753,259.64,132.14,132.02,27.99132642]
[1744615127754,8.76216157,132.13,132.06,27.92832642]
[1744615127960,14.6749,132.13,132.08,27.92832642]
[1744615128169,1.6585,132.16,132.1,27.92832642]
[1744615128364,27.92832642,132.15,132.1,27.92832642]
[1744615128670,27.92832642,132.11,132.06,27.92832642]
[1744615128873,18.79181043,132.12,132.03,6.0592]
[1744615128874,27.92832642,132.1,132.03,6.0592]
[1744615129082,27.92832642,132.1,132.05,27.92832642]
[1744615129252,18.79181043,132.12,132.04,27.92832642]
[1744615129253,27.92832642,132.09,132.04,27.92832642]
[1744615129777,27.92832642,132.1,132.05,27.92832642]
[1744615129961,27.92832642,132.12,132.08,27.92832642]
[1744615130166,27.92832642,132.13,132.08,27.92832642]
[1744615130978,33.98292642,132.13,132.08,27.92832642]
[1744615131483,27.92832642,132.1,132.05,27.92832642]
[1744615131791,27.92832642,132.11,132.06,27.92832642]
[1744615132362,27.92832642,132.1,132.05,27.92832642]
[1744615132567,27.92832642,132.11,132.06,27.92832642]
[1744615133000,27.92832642,132.1,132.05,27.92832642]
[1744615133374,33.98432642,132.1,132.05,27.92832642]
[1744615133576,27.92832642,132.1,132.05,33.98662642]
[1744615133768,33.98392642,132.11,132.06,27.92832642]
[1744615134089,27.92832642,132.1,132.02,82.663]
[1744615134277,27.92832642,132.1,132.05,27.92832642]
[1744615134780,8.78,132.15,132.08,27.92832642]
[1744615134983,27.92832642,132.14,132.09,27.92832642]
[1744615135600,27.92832642,132.14,132.08,27.92832642]
[1744615135601,27.92832642,132.13,132.08,27.92832642]
[1744615135965,27.92832642,132.11,132.06,27.92832642]
[1744615136293,27.92832642,132.1,132.05,27.92832642]
[1744615136598,27.92832642,132.08,132.03,27.92832642]
[1744615136895,27.92832642,132.1,132.05,27.92832642]
[1744615137902,33.98432642,132.1,132.05,33.98652642]
[1744615139199,27.92832642,132.11,132.06,27.92832642]
[1744615139398,53.92832642,132.12,132.07,27.92832642]
[1744615139567,27.57181043,132.15,132.09,27.92832642]
[1744615139568,33.98262642,132.14,132.09,27.92832642]
[1744615139765,27.92832642,132.13,132.08,27.92832642]
[1744615140372,27.92832642,132.12,132.06,27.92832642]
[1744615140572,27.92832642,132.12,132.08,27.92832642]
[1744615140800,27.92832642,132.12,132.07,27.92832642]
[1744615141194,27.92832642,132.16,132.1,27.92832642]
[1744615141509,33.98062642,132.18,132.12,27.92832642]
[1744615141790,27.92832642,132.19,132.14,27.92832642]
[1744615141995,36.70832642,132.2,132.14,27.92832642]
[1744615142204,33.97932642,132.21,132.15,27.92832642]
[1744615142369,33.97932642,132.21,132.16,27.92832642]
[1744615142577,33.97932642,132.21,132.15,27.92832642]
[1744615142792,33.97932642,132.21,132.16,27.92832642]
[1744615142996,27.92832642,132.21,132.16,27.92832642]
[1744615143295,27.92832642,132.24,132.19,27.92832642]
[1744615143606,27.92832642,132.25,132.2,27.92832642]
[1744615143795,6.0482,132.27,132.2,27.92832642]
[1744615144094,27.92832642,132.27,132.22,27.92832642]
[1744615144394,27.92832642,132.23,132.18,8.78]
[1744615144587,27.92832642,132.22,132.18,8.78]
[1744615144896,27.92832642,132.23,132.18,36.70832642]
[1744615145099,27.92832642,132.21,132.16,33.98142642]
[1744615145480,53.92832642,132.24,132.18,27.92832642]
[1744615145796,53.92832642,132.24,132.17,27.92832642]
[1744615145797,27.92832642,132.22,132.17,27.92832642]
[1744615146390,27.92832642,132.2,132.14,91.38]
[1744615146578,46.72013685,132.24,132.14,36.70832642]
[1744615146775,27.92832642,132.18,132.14,8.78]
[1744615146980,21.45462314,132.26,132.17,27.92832642]
[1744615147183,27.92832642,132.23,132.18,27.92832642]
[1744615147384,27.92832642,132.23,132.17,27.92832642]
[1744615147708,6.0484,132.27,132.21,27.92832642]
[1744615147885,6.0479,132.28,132.23,27.92832642]
[1744615148200,259.91216157,132.31,132.23,27.92832642]
[1744615148201,0.03,132.31,132.27,27.92832642]
[1744615148391,27.95832642,132.31,132.24,18.933972]
[1744615148594,27.92832642,132.3,132.25,27.92832642]
[1744615148906,0.03,132.31,132.27,27.92832642]
[1744615149402,0.03,132.31,132.26,27.92832642]
[1744615149607,0.03,132.31,132.27,27.92832642]
[1744615149780,27.95832642,132.31,132.26,27.92832642]
[1744615149985,27.95832642,132.31,132.25,27.92832642]
[1744615149986,27.92832642,132.3,132.25,27.92832642]
[1744615150201,27.95832642,132.31,132.26,27.92832642]
[1744615150583,27.92832642,132.29,132.23,14.8296]
[1744615150781,27.92832642,132.27,132.2,6.0514]
[1744615151125,27.92832642,132.26,132.21,27.92832642]
[1744615151508,33.97702642,132.26,132.21,27.92832642]
[1744615152017,27.92832642,132.25,132.2,27.92832642]
[1744615152916,27.92832642,132.21,132.14,82.6]
[1744615153114,27.92832642,132.18,132.13,27.92832642]
[1744615153418,53.92832642,132.21,132.15,27.92832642]
[1744615153624,33.97982642,132.2,132.12,43.06572642]
[1744615153804,59.97942642,132.21,132.15,27.92832642]
[1744615153994,27.92832642,132.21,132.16,27.92832642]
[1744615155308,27.92832642,132.21,132.13,107.44641043]
[1744615155309,36.70832642,132.24,132.18,27.92832642]
[1744615155499,6.0505,132.22,132.18,27.92832642]
[1744615155695,33.97852642,132.23,132.17,27.92832642]
[1744615156304,33.97852642,132.23,132.18,27.92832642]
[1744615156709,33.97852642,132.23,132.17,27.92832642]
[1744615156909,33.97852642,132.23,132.15,27.92832642]
[1744615156910,27.92832642,132.21,132.15,27.92832642]
[1744615157119,27.92832642,132.19,132.14,27.92832642]
[1744615157416,27.92832642,132.2,132.15,27.92832642]
[1744615157714,33.98012642,132.2,132.15,27.92832642]
[1744615157901,6.0518,132.2,132.15,27.92832642]
[1744615158089,33.98012642,132.2,132.15,27.92832642]
[1744615159309,27.92832642,132.18,132.11,25.45431043]
[1744615159801,33.98032642,132.19,132.13,27.92832642]
[1744615160514,27.92832642,132.18,132.13,27.92832642]
[1744615161200,27.92832642,132.18,132.13,33.98272642]
[1744615161404,27.92832642,132.15,132.1,97.4359]
[1744615161713,27.92832642,132.17,132.11,27.92832642]
[1744615162227,27.92832642,132.17,132.12,27.92832642]
[1744615163116,33.98152642,132.17,132.12,27.92832642]
[1744615163614,6.0532,132.17,132.12,33.98322642]
[1744615163814,27.92832642,132.18,132.12,33.98322642]
[1744615163815,33.98082642,132.18,132.12,33.98322642]
[1744615164012,27.92832642,132.18,132.13,27.92832642]
[1744615164623,27.92832642,132.19,132.14,27.92832642]
[1744615164823,33.97932642,132.21,132.16,27.92832642]
[1744615165189,33.98112642,132.17,132.12,82.6]
[1744615165393,27.92832642,132.13,132.07,6.0573]
[1744615165615,21.1848,132.17,132.07,6.0573]
[1744615165616,27.92832642,132.12,132.07,33.98562642]
[1744615165815,27.92832642,132.15,132.1,27.92832642]
[1744615166147,27.92832642,132.14,132.09,27.92832642]
[1744615166816,27.92832642,132.14,132.08,27.92832642]
[1744615167007,27.92832642,132.13,132.08,27.92832642]
[1744615167313,33.98302642,132.13,132.08,27.92832642]
[1744615167713,33.98302642,132.13,132.06,88.6577]
[1744615167921,27.92832642,132.11,132.06,88.6577]
[1744615168093,27.92832642,132.11,132.05,33.98642642]
[1744615168291,27.92832642,132.12,132.07,27.92832642]
[1744615168496,6.0547,132.13,132.05,24.70774886]
[1744615168497,27.92832642,132.11,132.06,27.92832642]
[1744615168725,27.92832642,132.1,132.05,33.98642642]
[1744615168917,27.92832642,132.1,132.05,27.92832642]
[1744615169221,27.92832642,132.11,132.06,27.92832642]
[1744615169405,27.92832642,132.13,132.08,27.92832642]
[1744615170528,33.98302642,132.13,132.08,33.98522642]
[1744615171001,33.98302642,132.13,132.08,27.92832642]
[1744615171199,24.87546856,132.13,132.08,18.82076856]
[1744615172027,24.87546856,132.13,132.08,24.87756856]
[1744615172526,24.87506856,132.14,132.08,24.87756856]
[1744615173120,24.87496856,132.14,132.08,6.0568]
[1744615173309,18.82076856,132.13,132.08,18.82076856]
[1744615173509,24.87496856,132.14,132.08,24.87766856]
[1744615174038,24.87626856,132.11,132.06,6.0576]
[1744615174228,24.87626856,132.11,132.05,91.22]
[1744615174229,18.82076856,132.12,132.07,18.82076856]
[1744615174407,24.96821043,132.15,132.08,18.82076856]
[1744615174408,18.82076856,132.13,132.08,18.82076856]
[1744615174602,18.82076856,132.17,132.12,18.82076856]
[1744615174902,24.94586856,132.2,132.15,18.82076856]
[1744615175107,10.2296,132.22,132.17,18.82076856]
[1744615175434,18.82076856,132.21,132.16,18.82076856]
[1744615175602,1.6096,132.22,132.12,18.82076856]
[1744615175603,18.82076856,132.18,132.12,18.82076856]
[1744615175808,18.82076856,132.16,132.09,18.933972]
[1744615176012,18.79181043,132.19,132.12,24.87566856]
[1744615176013,18.82076856,132.17,132.12,24.87566856]
[1744615176220,24.87366856,132.17,132.12,18.82076856]
[1744615176536,18.82076856,132.16,132.11,18.82076856]
[1744615176729,18.82076856,132.16,132.11,24.87616856]
[1744615177228,24.87366856,132.17,132.11,24.87616856]
[1744615177838,24.87366856,132.17,132.09,18.933972]
[1744615177839,18.82076856,132.14,132.09,18.82076856]
[1744615178007,18.82076856,132.13,132.08,107.47736856]
[1744615178215,18.82076856,132.15,132.1,18.82076856]
[1744615178621,6.0532,132.16,132.11,18.82076856]
[1744615178820,24.87396856,132.16,132.11,18.82076856]
[1744615179018,24.87396856,132.16,132.08,88.6566]
[1744615179216,18.82076856,132.15,132.08,88.6566]
[1744615179423,18.82076856,132.15,132.1,18.82076856]
[1744615180138,24.87446856,132.15,132.1,24.87666856]
[1744615180733,6.0537,132.15,132.1,6.0559]
[1744615180946,24.87446856,132.15,132.1,24.87666856]
[1744615181237,24.87416856,132.16,132.1,24.87666856]
[1744615182941,18.82076856,132.15,132.1,24.87666856]
[1744615183135,18.82076856,132.11,132.05,82.6]
[1744615183310,18.82076856,132.09,132.05,88.6582]
[1744615183512,1.6216,132.13,132.07,18.82076856]
[1744615183737,18.82076856,132.15,132.1,18.82076856]
[1744615184038,6.3308,132.16,132.11,18.82076856]
[1744615184039,18.82076856,132.16,132.11,18.82076856]
[1744615184233,18.82076856,132.15,132.1,18.82076856]
[1744615184640,18.82076856,132.14,132.09,18.82076856]
[1744615185246,18.82076856,132.13,132.08,18.82076856]
[1744615186153,24.87506856,132.14,132.09,18.82076856]
[1744615186846,18.82076856,132.15,132.1,18.82076856]
[1744615187048,24.87406856,132.16,132.11,18.82076856]
[1744615187225,18.82076856,132.15,132.1,101.42076856]
[1744615187432,6.0533,132.16,132.1,82.6]
[1744615187433,18.82076856,132.14,132.1,82.6]
[1744615187919,18.82076856,132.13,132.08,27.44076856]
[1744615188118,18.82076856,132.12,132.07,24.87766856]
[1744615188318,18.82076856,132.13,132.08,18.82076856]
[1744615188532,18.82076856,132.1,132.03,82.663]
[1744615188736,18.82076856,132.1,132.04,24.87936856]
[1744615189020,18.82076856,132.1,132.05,18.82076856]
[1744615189543,18.82076856,132.1,132.04,24.87936856]
[1744615189749,18.82076856,132.1,132.05,18.82076856]
[1744615190120,18.82076856,132.1,132.05,24.87876856]
[1744615190350,24.87686856,132.1,132.05,24.87876856]
[1744615190725,18.82076856,132.08,132.03,101.48376856]
[1744615190927,18.82076856,132.07,132.03,0.063]
[1744615191175,18.82076856,132.08,132.03,18.88376856]
[1744615191335,18.82076856,132.08,132.03,0.063]
[1744615191532,18.82076856,132.08,132.03,18.88376856]
[1744615191925,18.82076856,132.07,132.03,0.063]
[1744615192224,24.87856856,132.07,132.03,0.063]
[1744615192451,18.82076856,132.06,132.03,0.063]
[1744615192936,18.82076856,132.05,132.03,0.063]
[1744615193244,18.82076856,132.06,132.03,0.063]
[1744615193450,24.87856856,132.07,132.03,0.063]
[1744615194032,18.82076856,132.06,132.03,0.063]
[1744615194235,18.82076856,132.05,132.03,0.063]
[1744615194764,18.82076856,132.06,132.03,0.063]
[1744615195663,18.82076856,132.07,132.03,0.063]
[1744615195963,18.82076856,132.06,132.03,0.063]
[1744615196536,24.87866856,132.06,132.03,0.063]
[1744615197359,18.82076856,132.06,132.03,0.063]
[1744615198365,24.87856856,132.06,132.03,0.063]
[1744615198539,18.82076856,132.05,132.03,0.063]
[1744615200059,6.0578,132.06,132.03,0.063]
[1744615200247,18.82076856,132.05,132.03,0.063]
[1744615201262,18.82076856,132.07,132.03,0.063]
[1744615201559,9.9557,132.14,132.06,18.82076856]
[1744615201762,18.82076856,132.14,132.09,18.82076856]
[1744615201963,18.82076856,132.14,132.09,101.42076856]
[1744615202339,18.82076856,132.15,132.1,18.82076856]
[1744615202540,18.82076856,132.13,132.09,82.6]
[1744615202958,18.82076856,132.14,132.09,101.42076856]
[1744615203168,18.82076856,132.14,132.1,18.82076856]
[1744615203353,24.87516856,132.14,132.09,107.47716856]
[1744615203689,18.82076856,132.13,132.09,82.6]
[1744615204489,18.82076856,132.1,132.05,82.6]
[1744615204638,18.82076856,132.09,132.05,82.6]
[1744615204966,18.82076856,132.07,132.04,82.6]
[1744615205153,18.82076856,132.05,132.03,82.663]
[1744615205354,0.14216157,132.1,132.02,0.063]
[1744615205355,37.61257899,132.04,132.02,0.063]
[1744615205542,37.61257899,132.04,131.98,0.063]
[1744615205543,26.0,132.0,131.98,0.063]
[1744615205744,44.82076856,131.99,131.98,0.063]
[1744615206156,0.28432314,131.98,131.97,0.063]
[1744615206368,37.89690213,131.98,131.97,0.0001]
[1744615206570,37.61257899,131.98,131.97,0.0001]
[1744615206738,1.6266,131.99,131.97,0.0001]
[1744615206952,18.82076856,131.98,131.97,0.0001]
[1744615207668,43.67407899,131.98,131.97,0.0001]
[1744615207972,44.79181043,131.95,131.94,0.063]
[1744615208149,6.0612,131.99,131.94,0.063]
[1744615208343,18.82076856,131.97,131.94,0.063]
[1744615208767,6.0606,132.0,131.94,18.88376856]
[1744615208966,18.82076856,131.97,131.94,0.063]
[1744615209271,18.82076856,131.99,131.94,18.88376856]
[1744615209473,18.82076856,132.01,131.96,18.82076856]
[1744615209645,18.82076856,132.03,131.98,18.82076856]
[1744615209846,18.82076856,132.01,131.97,6.0619]
[1744615210049,18.82076856,132.01,131.96,18.82076856]
[1744615211357,18.82076856,132.0,131.96,82.6]
[1744615211554,18.82076856,131.98,131.96,82.6]
[1744615212155,18.79181043,132.04,131.96,88.6624]
[1744615212356,44.82076856,132.01,131.96,107.48316856]
[1744615212749,0.14216157,132.07,131.99,18.82076856]
[1744615212960,18.82076856,132.05,132.0,18.82076856]
[1744615213470,8.36,132.09,132.03,18.82076856]
[1744615213650,30.54969958,132.11,132.06,18.82076856]
[1744615213857,11.72893102,132.11,132.08,18.82076856]
[1744615214054,24.87566856,132.13,132.08,18.82076856]
[1744615214255,30.54969958,132.14,132.09,18.82076856]
[1744615214573,11.72893102,132.14,132.1,18.82076856]
[1744615214752,36.60389958,132.14,132.09,18.82076856]
[1744615214942,30.54969958,132.14,132.09,18.82076856]
[1744615215148,11.72893102,132.14,132.1,27.79317986]
[1744615215366,11.72893102,132.14,132.11,27.79317986]
[1744615215571,11.72893102,132.14,132.1,33.84897986]
[1744615215961,26.0,132.09,132.01,1.5071]
[1744615216156,26.0,132.09,131.98,6.5856]
[1744615216157,27.79317986,132.03,131.98,6.5856]
[1744615216348,27.79317986,131.99,131.94,27.85617986]
[1744615216868,27.79317986,132.03,131.97,27.85617986]
[1744615217071,27.79317986,132.02,131.97,27.85617986]
[1744615217775,27.79317986,131.99,131.97,0.063]
[1744615218476,27.79317986,132.0,131.97,0.063]
[1744615219675,27.79317986,131.99,131.97,0.063]
[1744615219850,33.85377986,132.0,131.97,0.063]
[1744615220049,27.79317986,132.01,131.97,0.063]
[1744615220774,27.79317986,132.0,131.97,0.063]
[1744615221772,27.79317986,132.02,131.97,27.85617986]
[1744615221977,27.79317986,132.01,131.97,0.063]
[1744615224682,53.79317986,131.91,131.9,0.063]
[1744615225260,18.79181043,131.9,131.89,0.063]
[1744615225569,18.79181043,131.86,131.77,27.79317986]
[1744615225761,27.79317986,131.83,131.78,27.79317986]
[1744615226469,6.0675,131.85,131.79,27.79317986]
[1744615226470,27.79317986,131.84,131.79,27.79317986]
[1744615227171,27.79317986,131.83,131.78,27.79317986]
[1744615227379,27.79317986,131.84,131.79,27.79317986]
[1744615227695,27.79317986,131.85,131.8,27.79317986]
[1744615228174,27.79317986,131.82,131.77,27.79317986]
[1744615228376,27.79317986,131.84,131.78,18.64964886]
[1744615228581,27.79317986,131.84,131.79,27.79317986]
[1744615228779,27.79317986,131.83,131.78,6.0703]
[1744615228981,27.79317986,131.82,131.76,6.0716]
[1744615229278,27.79317986,131.83,131.77,27.79317986]
[1744615229781,27.79317986,131.84,131.79,27.79317986]
[1744615229957,27.79317986,131.83,131.78,27.79317986]
[1744615230464,27.79317986,131.82,131.77,46.44282872]
[1744615230674,27.79317986,131.81,131.77,82.6]
[1744615230871,27.79317986,131.81,131.77,88.6711]
[1744615231072,27.79317986,131.82,131.77,116.46427986]
[1744615231871,27.79317986,131.83,131.78,27.79317986]
[1744615232185,27.79317986,131.84,131.79,27.79317986]
[1744615232485,27.79317986,131.83,131.78,27.79317986]
[1744615232862,27.79317986,131.82,131.77,116.46427986]
[1744615233892,27.79317986,131.82,131.77,82.6]
[1744615234091,27.79317986,131.8,131.77,82.6]
[1744615234389,27.79317986,131.8,131.75,12.2015]
[1744615234598,27.79317986,131.8,131.75,39.99467986]
[1744615234765,27.79317986,131.8,131.75,33.92267986]
[1744615234967,33.86307986,131.8,131.75,33.92267986]
[1744615235166,27.79317986,131.79,131.73,88.6729]
[1744615235366,27.79317986,131.78,131.73,116.46607986]
[1744615236397,27.79317986,131.74,131.69,116.53087986]
[1744615236690,27.79317986,131.73,131.69,82.663]
[1744615236870,18.79181043,131.78,131.7,27.79317986]
[1744615237065,27.79317986,131.75,131.69,82.663]
[1744615237265,27.79317986,131.74,131.69,82.663]